[Event "Croatian 1B League 2022"]
[Site "Porec"]
[Date "2022.09.26"]
[Round "3.1"]
[White "Movsesian, Sergei"]
[Black "Dobrovoljc, Vid"]
[Result "1-0"]
[ECO "B30"]
[WhiteElo "2619"]
[BlackElo "2402"]
[Annotator "TA"]
[PlyCount "91"]
[EventDate "2022.09.24"]
[EventType "team-tourn"]
[EventCountry "CRO"]
[SourceTitle "playchess.com"]
[Source "ChessBase"]
[SourceQuality "1"]
[TimeControl "40/5400+30:1800+30"]

{[%evp 10,91,25,15,39,24,24,24,48,20,15,12,12,13,52,38,73,83,82,83,73,70,77,47,61,60,127,132,128,125,132,122,140,146,165,154,197,211,201,203,203,202,205,206,194,111,203,204,198,208,238,235,245,250,247,248,243,231,246,167,264,265,248,252,327,316,345,329,343,339,364,374,777,741,743,718,817,712,752,697,1313,1230,1060,1007]} 1. e4 {[%emt 0:00:04] Gormally,D} c5 {[%emt 0:01:07]} 2. Nf3 {[%emt 0:00:23]} Nc6 {[%emt 0:00:22]} 3. Bb5 {[%emt 0:00:08]} e6 {[%emt 0:01:36]} 4. O-O {[%emt 0:01:16]} Nge7 {[%emt 0:01:00]} 5. d4 {[%emt 0:00:45]} cxd4 {[%emt 0:00:12]} 6. Nxd4 {[%emt 0:00:04]} Ng6 {[%emt 0:00:27] B30: Sicilian: 2...Nc6 3 Bb5, lines without ...g6.} 7. Be3 {[%emt 0:03:09]} Be7 {[%emt 0:01:11]} 8. Nc3 {[%emt 0:02:11]} O-O {[%emt 0:07:50] White has an edge.} 9. a4 $5 {[%emt 0:02:35][%mdl 4] A promising side line.} Qc7 {[%emt 0:12:35]} 10. Be2 {[%emt 0:05:04][%cal Oa4a5]} a6 {[%emt 0:14:42]} 11. Nb3 {[%emt 0:06:23] [#]} Bb4 $146 {[%emt 0:18:20][%cal Od7d5] Inhibits a5.} ({Predecessor:} 11... b6 12. f4 Bb7 13. Qd2 Rad8 14. Bd3 d5 15. exd5 exd5 16. f5 Nge5 17. f6 Bxf6 18. Rxf6 {½-½ (33) Vachier Lagrave,M (2754)-Gelfand,B (2744) Khanty-Mansiysk 2015 CBM 167 [Gormally,D]}) 12. f4 {[%emt 0:03:54][%cal Oa4a5]} Na5 {[%emt 0:13:38]} 13. Qd4 $36 {[%emt 0:05:34][%mdl 2048] Black is under strong pressure.} Be7 {[%emt 0:03:08]} 14. Nxa5 {[%emt 0:06:54]} Qxa5 {[%emt 0:00:11]} 15. Rad1 {[%emt 0:02:18]} d6 {[%emt 0:01:38]} 16. Qb6 {[%emt 0:02:49]} Qxb6 {[%emt 0:01:53]} 17. Bxb6 {[%emt 0:00:20]} f5 {[%emt 0:00:16]} (17... Re8 $1 $14) 18. g3 $16 {[%emt 0:16:11]} fxe4 {[%emt 0:02:11]} 19. Nxe4 {[%emt 0:00:20]} d5 {[%emt 0:00:04]} 20. Nc5 {[%emt 0:00:53]} Bf6 {[%emt 0:01:57]} 21. c3 {[%emt 0:04:13] White is much more active.} Ne7 {[%emt 0:01:22]} 22. Bg4 {[%emt 0:08:36]} e5 {[%emt 0:01:35]} 23. Be6+ {[%emt 0:00:52]} Bxe6 {[%emt 0:00:37]} 24. Nxe6 {[%emt 0:00:03]} Rf7 {[%emt 0:00:46] [#]} 25. Nd8 $1 {[%emt 0:00:15]} Rf8 {[%emt 0:00:38]} 26. fxe5 {[%emt 0:00:09]} (26. Nxb7 Rfb8 27. fxe5 Bxe5 $17) 26... Bxe5 {[%emt 0:01:08]} 27. Rxf8+ {[%emt 0:00:41]} ({Stronger than} 27. Nxb7 Rfb8 28. Nc5 Rxb6 $17) 27... Kxf8 {[%emt 0:00:22]} 28. Nxb7 {[%emt 0:00:05]} Kf7 {[%emt 0:05:56]} 29. a5 {[%emt 0:01:57]} h5 {[%emt 0:01:50]} 30. Re1 {[%emt 0:06:16]} Bf6 {[%emt 0:00:24]} 31. Nd8+ {[%emt 0:00:36]} Kg8 {[%emt 0:02:56]} 32. Ne6 {[%emt 0:00:28] Inhibits d4.} Rc8 {[%emt 0:00:46]} 33. Rd1 {[%emt 0:03:51]} Be5 {[%emt 0:01:53]} 34. Bc5 {[%emt 0:06:07] Against Bd6} Rc6 {[%emt 0:00:56]} (34... Nc6 $142 35. Rxd5 Re8) 35. Bxe7 $18 {[%emt 0:00:38]} Rxe6 {[%emt 0:00:04][%mdl 4096] Endgame KRB-KRB} 36. Bc5 {[%emt 0:00:55]} h4 {[%emt 0:00:36]} 37. gxh4 {[%emt 0:00:49]} Bc7 {[%emt 0:00:45]} 38. b4 {[%emt 0:00:53]} ({Resist} 38. Rxd5 Bxa5 39. b4 Bb6 $18) 38... Be5 {[%emt 0:00:28]} 39. Rd3 {[%emt 0:02:21]} ({Don't do} 39. Rxd5 Bxc3 40. h5 Kf7 41. Rd7+ Kf6 $18) 39... Rg6+ {[%emt 0:00:23]} 40. Kf1 {[%emt 0:00:00]} Rg4 $2 {[%emt 0:00:00] [#]} (40... Kf7 41. Rxd5 Bxc3 42. Rd7+ Ke8) 41. b5 {[%emt 0:03:24] White is clearly winning.} Rf4+ {[%emt 0:06:59]} 42. Ke2 {[%emt 0:02:51]} axb5 {[%emt 0:00:09]} 43. a6 {[%emt 0:00:12][%cal Ba5a6,Ba6a7][%mdl 32]} Ra4 {[%emt 0:00:26]} 44. Rxd5 {[%emt 0:00:43]} Bxc3 {[%emt 0:01:02]} 45. Rd8+ {[%emt 0:01:14]} Kh7 {[%emt 0:00:05]} 46. a7 {[%emt 0:00:27] Weighted Error Value: White=0.07 (flawless) /Black=0.20 (precise)} 1-0

[Event "Croatian 1B League 2022"]
[Site "Porec"]
[Date "2022.09.26"]
[Round "3.2"]
[White "Drnovsek, Gal"]
[Black "Jovanovic, Zoran"]
[Result "1/2-1/2"]
[ECO "E62"]
[WhiteElo "2393"]
[BlackElo "2519"]
[Annotator "TA"]
[PlyCount "61"]
[EventDate "2022.09.24"]
[EventType "team-tourn"]
[EventCountry "CRO"]
[SourceTitle "playchess.com"]
[Source "ChessBase"]
[SourceQuality "1"]
[TimeControl "40/5400+30:1800+30"]

{[%evp 20,61,22,32,22,27,29,29,24,0,6,0,19,0,4,0,0,0,3,0,0,0,0,0,12,0,0,0,0,0,0,0,0,0,18,23,38,8,8,8,9,9,10,0]} 1. d4 {[%emt 0:00:03]} d6 {[%emt 0:02:06]} 2. Nf3 {[%emt 0:00:13]} Nf6 {[%emt 0:00:18]} 3. g3 {[%emt 0:00:48]} g6 {[%emt 0:00:16]} 4. Bg2 {[%emt 0:00:07]} Bg7 {[%emt 0:00:02]} 5. O-O {[%emt 0:00:17]} O-O {[%emt 0:00:16]} 6. c4 {[%emt 0:00:53]} Nc6 {[%emt 0:00:39]} 7. Nc3 {[%emt 0:01:05]} e5 {[%emt 0:00:04]} 8. dxe5 {[%emt 0:01:44]} Nxe5 {[%emt 0:03:57]} 9. Nxe5 {[%emt 0:00:40]} dxe5 {[%emt 0:00:02]} 10. Qxd8 {[%emt 0:06:10]} Rxd8 {[%emt 0:02:20]} 11. Bg5 {[%emt 0:00:06]} Rd7 {[%emt 0:00:04] E62: King's Indian: Fianchetto: 6...c6 and Panno Variation (6...Nc6) without ...a6.} 12. Rac1 {[%emt 0:19:23] 12.Rfd1 gains popularity.} c6 {[%emt 0:15:01] [#]} 13. b4 $146 {[%emt 0:04:29]} ({Predecessor:} 13. b3 h6 14. Bxf6 Bxf6 15. Ne4 Be7 16. Rcd1 f5 17. Rxd7 Bxd7 18. Nd2 Rd8 19. Nf3 {½-½ (26) Hoffmann,S-Oberlaender,O Wuerttemberg 1995}) 13... h6 {[%emt 0:08:24] White has an edge.} 14. Bxf6 {[%emt 0:01:09]} Bxf6 {[%emt 0:02:58]} 15. b5 {[%emt 0:02:02]} cxb5 {[%emt 0:05:45]} 16. cxb5 {[%emt 0:01:08]} Bd8 {[%emt 0:03:00]} 17. Nd5 {[%emt 0:17:54][%cal Bc3d5,Bd5e3,Be3c4][%mdl 32]} Rb8 {[%emt 0:16:35]} 18. a4 {[%emt 0:08:08]} Rd6 {[%emt 0:04:10]} 19. Rfd1 {[%emt 0:03:47][%cal Od5f6] [#] Hoping for Nf6+!} Kf8 {[%emt 0:08:55]} 20. Ne3 {[%emt 0:03:43]} Rxd1+ {[%emt 0:03:18]} 21. Rxd1 {[%emt 0:00:12]} Be7 {[%emt 0:00:26]} 22. Rc1 {[%emt 0:09:33]} Be6 {[%emt 0:03:08]} 23. Bd5 {[%emt 0:05:11] Strongly threatening Bxe6.} Rc8 {[%emt 0:01:10]} 24. Rxc8+ {[%emt 0:02:49]} Bxc8 $11 {[%emt 0:00:02][%mdl 4096] Endgame KBB-KBN} 25. Nc4 {[%emt 0:00:10]} f6 {[%emt 0:00:17]} 26. b6 {[%emt 0:01:44]} Bc5 {[%emt 0:03:17] [#]} 27. Nd6 $1 {[%emt 0:02:44] Black must now prevent bxa7.} Bd7 {[%emt 0:01:05]} (27... Bg4 28. a5) 28. bxa7 {[%emt 0:00:39]} (28. a5 $5 {[%cal Rd6e4]} axb6 29. Nxb7 $14) 28... Bxa7 {[%emt 0:00:02] The position is equal.} 29. Nb5 {[%emt 0:03:07]} Bxb5 {[%emt 0:00:16]} 30. axb5 {[%emt 0:00:04]} b6 {[%emt 0:00:05]} 31. Kg2 {[%emt 0:00:13] A rather calm draw.  Weighted Error Value: White=0.05 (flawless) /Black=0.03 (flawless)} 1/2-1/2

[Event "Croatian 1B League 2022"]
[Site "Porec"]
[Date "2022.09.26"]
[Round "3.3"]
[White "Bukal, Vladimir Jr."]
[Black "Golubovic, Boris"]
[Result "1-0"]
[ECO "A14"]
[WhiteElo "2411"]
[BlackElo "2360"]
[Annotator "TA"]
[PlyCount "85"]
[EventDate "2022.09.24"]
[EventType "team-tourn"]
[EventCountry "CRO"]
[SourceTitle "playchess.com"]
[Source "ChessBase"]
[SourceQuality "1"]
[TimeControl "40/5400+30:1800+30"]

{[%evp 17,85,0,0,0,0,0,0,4,0,0,16,11,37,31,79,64,90,25,29,0,19,22,0,9,58,16,67,70,148,140,204,143,140,118,159,150,156,153,159,159,159,159,159,159,170,165,387,241,326,333,302,299,309,271,249,215,220,213,335,307,294,302,483,462,429,410,410,407,417,367]} 1. Nf3 {[%emt 0:00:04]} d5 {[%emt 0:02:58]} 2. g3 {[%emt 0:00:09]} Nf6 {[%emt 0:04:46]} 3. Bg2 {[%emt 0:00:37]} e6 {[%emt 0:05:25]} 4. c4 {[%emt 0:05:31]} Be7 {[%emt 0:01:31]} 5. O-O {[%emt 0:03:23]} O-O {[%emt 0:00:37]} 6. b3 {[%emt 0:00:05]} c5 {[%emt 0:13:24]} 7. Bb2 {[%emt 0:02:31]} Nc6 {[%emt 0:08:57]} 8. e3 {[%emt 0:01:56]} b6 {[%emt 0:04:49]} 9. Nc3 {[%emt 0:04:16]} Ba6 {[%emt 0:04:34]} 10. Qe2 {[%emt 0:04:11] A14: English Opening: 1...e6 with b3 by White.} Rc8 {[%emt 0:02:08]} 11. Rfd1 {[%emt 0:09:40]} e5 {[%emt 0:09:37]} 12. d3 {[%emt 0:24:07] And now cxd5 would win. The position is equal.} d4 {[%emt 0:00:54]} 13. Nd5 {[%emt 0:10:26]} Bd6 {[%emt 0:13:53] [#]} ({Much less strong is} 13... Nxd5 14. cxd5 e4 15. dxc6 $16) 14. e4 $146 {[%emt 0:03:41][%cal Be3e4,Be4d5][%mdl 32]} ({Predecessor:} 14. Bh3 Nxd5 15. cxd5 Ne7 16. e4 Rc7 17. Nd2 f5 18. Nf3 h6 19. Nh4 fxe4 20. Be6+ {0-1 (60) Pantsulaia,L (2588)-Kotanjian,T (2522) Dubai 2010}) 14... Re8 {[%emt 0:03:36]} 15. Bc1 {[%emt 0:04:48]} Nxd5 {[%emt 0:10:50]} (15... Ra8 $14 {should be considered.}) 16. exd5 $16 {[%emt 0:00:19]} Nb8 {[%emt 0:01:33]} 17. h4 {[%emt 0:07:38]} (17. Ng5 $16 {Qh5 is the strong threat.} h6 18. Ne4) 17... Rc7 {[%emt 0:00:30]} 18. Bh3 {[%emt 0:08:23]} Bc8 {[%emt 0:00:19]} 19. Bxc8 {[%emt 0:00:11]} Qxc8 {[%emt 0:01:26]} 20. Ng5 {[%emt 0:00:26]} Bf8 {[%emt 0:03:56]} (20... f5 $11 {deserves consideration.}) 21. g4 {[%emt 0:04:46]} (21. Qe4 $5 {[%cal Re4h7]} f5 22. Qf3 $14) 21... Be7 {[%emt 0:01:06]} (21... h6 $11 22. Ne4 f5 23. gxf5 Qxf5) 22. Ne4 $36 {[%emt 0:01:01][%mdl 2048] Hoping for d6. White has some pressure.} Qd8 {[%emt 0:01:08] Inhibits d6.} ({Black should play} 22... f5 $14 23. gxf5 Qxf5) 23. h5 {[%emt 0:00:32]} Rf8 {[%emt 0:01:02]} (23... f6 $16 24. h6 g6) 24. Kg2 {[%emt 0:00:45]} h6 {[%emt 0:01:18]} 25. Rh1 {[%emt 0:00:26][%cal Bd1h1,Bh1h3,Bh3g3][%mdl 32]} f6 {[%emt 0:00:46]} 26. Bd2 {[%emt 0:00:35]} Bd6 {[%emt 0:00:55]} 27. Qf3 {[%emt 0:00:37] White is much more active.} Qd7 {[%emt 0:00:37]} 28. Rh3 {[%emt 0:00:42]} Rb7 {[%emt 0:00:48]} 29. Qf5 {[%emt 0:01:10]} Qxf5 {[%emt 0:00:36]} 30. gxf5 {[%emt 0:00:02]} Rd8 {[%emt 0:00:42]} 31. Rg3 {[%emt 0:00:13][%csl LRf6,LRh6] Black must now prevent Kf3.} Kf7 $2 {[%emt 0:00:14]} (31... Kh8 32. Rg6 (32. Nxd6 Rxd6 33. f4 Rf7 $16) 32... Bf8) 32. f4 {[%emt 0:01:20]} exf4 {[%emt 0:01:04]} 33. Nxd6+ {[%emt 0:01:14][%mdl 64] [#] Remove Defender} Rxd6 {[%emt 0:00:00]} 34. Bxf4 {[%emt 0:00:02]} Rdd7 {[%emt 0:00:44]} 35. Re1 {[%emt 0:00:35]} Na6 {[%emt 0:00:00]} 36. Bd2 {[%emt 0:00:27]} b5 {[%emt 0:00:06]} 37. Re6 {[%emt 0:00:09]} Nb8 {[%emt 0:00:25]} (37... bxc4 $142 38. dxc4 (38. Rxa6 c3 $16) 38... Nb4) 38. Bf4 {[%emt 0:01:22]} bxc4 {[%emt 0:00:13]} 39. dxc4 {[%emt 0:00:07]} a5 {[%emt 0:00:13] [#]} (39... Rd8 $142 40. Kf3 a5) 40. Rc6 $1 $18 {[%emt 0:00:00][%mdl 512]} Re7 {[%emt 0:00:00]} (40... Nxc6 $2 41. dxc6 Re7 42. cxb7 $18) (40... Rd8 41. Rxc5) 41. Bxb8 {[%emt 0:03:17]} Rxb8 {[%emt 0:00:19]} 42. Rxc5 {[%emt 0:00:11]} a4 {[%emt 0:00:06]} (42... Re2+ $2 43. Kh3 $18) 43. d6 {[%emt 0:01:34] Weighted Error Value: White=0.16 (very precise) /Black=0.36} 1-0

[Event "Croatian 1B League 2022"]
[Site "Porec"]
[Date "2022.09.26"]
[Round "3.4"]
[White "Petrov, Jole"]
[Black "Blazeka, Matej"]
[Result "1-0"]
[ECO "E04"]
[WhiteElo "2370"]
[BlackElo "2331"]
[Annotator "TA"]
[PlyCount "35"]
[EventDate "2022.09.24"]
[EventType "team-tourn"]
[EventCountry "CRO"]
[SourceTitle "playchess.com"]
[Source "ChessBase"]
[SourceQuality "1"]
[TimeControl "40/5400+30:1800+30"]

{[%evp 12,35,25,33,58,58,50,56,187,181,187,181,168,110,300,316,324,269,502,501,558,554,584,585,551,412]} 1. d4 {[%emt 0:03:59]} d5 {[%emt 0:00:09]} 2. Nf3 {[%emt 0:00:07]} Nf6 {[%emt 0:00:04][%cal Bg8f6,Bf6d5,Bd5b4][%mdl 32]} 3. c4 {[%emt 0:00:06]} c6 {[%emt 0:00:03]} 4. g3 {[%emt 0:01:24]} e6 {[%emt 0:00:26]} 5. Bg2 {[%emt 0:00:07]} Nbd7 {[%emt 0:01:01]} 6. O-O {[%emt 0:02:59]} dxc4 {[%emt 0:05:13]} 7. a4 {[%emt 0:04:14]} Nd5 {[%emt 0:01:57] E04: Open Catalan: 5 Nf3.} 8. e4 {[%emt 0:05:47]} Nb4 {[%emt 0:00:32]} 9. Na3 {[%emt 0:04:06][%cal Bb1a3,Ba3b5,Bb5c3][%mdl 32] [#]} b5 $146 {[%emt 0:14:20]} (9... Be7 $14) ({Predecessor:} 9... a5 10. Bg5 Be7 11. Bxe7 Qxe7 12. Nxc4 O-O 13. Re1 Nf6 14. Qd2 Rd8 15. Qc3 Qc7 {1-0 (33) Hnydiuk,A (2423)-Gelbenegger,P (2267) Zadar 2019}) 10. axb5 $18 {[%emt 0:10:44]} cxb5 {[%emt 0:00:10]} 11. Nxb5 {[%emt 0:00:08] [#] Threatens to win with Bf4.} Qb6 {[%emt 0:07:51]} 12. Qa4 {[%emt 0:08:18]} ({White should try} 12. Na3 $18) 12... Ba6 $2 {[%emt 0:00:35]} (12... Rb8 $16 {was called for.}) 13. Nc3 {[%emt 0:01:49]} Rd8 {[%emt 0:10:40]} 14. Bg5 {[%emt 0:08:36]} f6 $2 {[%emt 0:02:02] [#]} (14... Be7 15. Bxe7 Kxe7) 15. Be3 {[%emt 0:00:36] White is clearly winning.} Qb8 {[%emt 0:24:33]} 16. Bh3 {[%emt 0:06:29]} Kf7 {[%emt 0:11:11]} 17. d5 {[%emt 0:01:55]} Nc5 {[%emt 0:01:55]} 18. Qa5 {[%emt 0:10:37] Weighted Error Value: White=0.13 (very precise) /Black=0.82} 1-0

[Event "Croatian 1B League 2022"]
[Site "Porec"]
[Date "2022.09.26"]
[Round "3.5"]
[White "Vujakovic, Branko"]
[Black "Zelenika, Srdjan"]
[Result "1-0"]
[ECO "B33"]
[WhiteElo "2286"]
[BlackElo "2207"]
[Annotator "TA"]
[PlyCount "105"]
[EventDate "2022.09.24"]
[EventType "team-tourn"]
[EventCountry "CRO"]
[SourceTitle "playchess.com"]
[Source "ChessBase"]
[SourceQuality "1"]
[TimeControl "40/5400+30:1800+30"]

{[%evp 37,105,28,32,26,38,29,39,27,28,31,26,28,31,36,38,43,43,14,14,10,9,0,0,0,8,8,69,63,89,55,80,79,78,81,114,130,120,83,83,82,120,123,135,135,126,126,160,163,174,156,180,177,181,177,196,189,189,189,200,157,152,151,240,235,281,275,275,259,269,252]} 1. e4 {[%emt 0:01:40]} c5 {[%emt 0:00:06]} 2. Nf3 {[%emt 0:00:19][%cal Bg1f3,Bf3d4,Bd4b5,Bb5a3,Ba3c2][%mdl 32]} Nc6 {[%emt 0:00:06]} 3. d4 {[%emt 0:00:09]} cxd4 {[%emt 0:00:06]} 4. Nxd4 {[%emt 0:00:03]} Nf6 {[%emt 0:00:08]} 5. Nc3 {[%emt 0:00:14]} e5 {[%emt 0:00:11]} 6. Ndb5 {[%emt 0:00:18]} d6 {[%emt 0:00:14]} 7. Bg5 {[%emt 0:00:10]} a6 {[%emt 0:00:06]} 8. Na3 {[%emt 0:00:03]} b5 {[%emt 0:00:12]} 9. Nd5 {[%emt 0:00:16]} Be7 {[%emt 0:00:10]} 10. Bxf6 {[%emt 0:00:28]} Bxf6 {[%emt 0:00:07]} 11. c3 {[%emt 0:00:07]} O-O {[%emt 0:00:17]} 12. Nc2 {[%emt 0:00:12]} Bg5 {[%emt 0:00:20]} 13. a4 {[%emt 0:02:02]} bxa4 {[%emt 0:01:03]} 14. Rxa4 {[%emt 0:00:27]} a5 {[%emt 0:00:22]} 15. Bc4 {[%emt 0:00:24]} Rb8 {[%emt 0:00:29]} 16. b3 {[%emt 0:00:42]} Kh8 {[%emt 0:01:36]} 17. O-O {[%emt 0:00:27]} f5 {[%emt 0:01:31]} 18. exf5 {[%emt 0:00:37]} Bxf5 {[%emt 0:00:06]} 19. Nce3 {[%emt 0:00:44]} Be6 {[%emt 0:06:39]} 20. Ra2 {[%emt 0:05:40] B33: Sicilian: Pelikan and Sveshnikov Variations.} Qd7 {[%emt 0:22:40]} 21. Qd3 {[%emt 0:03:32]} Bf7 {[%emt 0:30:42]} 22. Rd1 {[%emt 0:21:46] White is slightly better.} Bh5 {[%emt 0:05:24]} 23. Re1 {[%emt 0:01:17] [#]} Bg6 $146 {[%emt 0:08:37]} ({Predecessor:} 23... Bh4 24. Nf1 Qf7 25. g3 Be7 26. Nf4 Qe8 27. Nxh5 Qxh5 28. Bd5 Qe8 29. Qa6 Nd8 {1-0 (48) Roberts,A (2319)-Fetisov,I (1471) LSS email 2009}) 24. Qe2 {[%emt 0:04:14]} e4 {[%emt 0:02:24]} 25. Bb5 {[%emt 0:03:07]} Qb7 {[%emt 0:09:58]} 26. Bxc6 {[%emt 0:01:30]} Qxc6 {[%emt 0:00:04]} 27. Qc4 {[%emt 0:04:37]} Qxc4 {[%emt 0:01:15]} 28. bxc4 {[%emt 0:00:37]} Bd8 {[%emt 0:00:13]} 29. h3 {[%emt 0:04:16]} Kg8 {[%emt 0:01:22]} 30. Rd1 {[%emt 0:01:15]} Rb3 {[%emt 0:03:56]} 31. Nc2 {[%emt 0:02:55] Black should prevent Nd4.} Re8 {[%emt 0:03:57]} (31... Bf7 $11) 32. Nd4 $14 {[%emt 0:00:26]} Rb7 {[%emt 0:00:09]} 33. Nc6 {[%emt 0:01:09] Pair of Knights!} Bf7 {[%emt 0:00:27]} 34. Nxd8 {[%emt 0:02:54] White has more active pieces.} Rxd8 {[%emt 0:00:04]} 35. Rxa5 {[%emt 0:00:32]} Rc8 {[%emt 0:00:37]} 36. Ne3 {[%emt 0:02:04]} Bxc4 {[%emt 0:00:39]} 37. Rxd6 {[%emt 0:00:21]} Bd3 {[%emt 0:00:35]} 38. Ra3 {[%emt 0:02:35]} Rf7 {[%emt 0:01:16]} 39. Rd4 {[%emt 0:01:43]} Rfc7 {[%emt 0:00:56]} 40. Nd5 {[%emt 0:00:00]} Rb7 {[%emt 0:00:00]} 41. Nb4 {[%emt 0:03:15]} Bc4 {[%emt 0:03:56]} 42. Rxe4 {[%emt 0:00:33]} Bf7 {[%emt 0:00:12]} 43. Re3 {[%emt 0:03:51]} Rd7 {[%emt 0:00:48]} 44. Kh2 {[%emt 0:01:47]} h6 {[%emt 0:00:33]} 45. Kg3 {[%emt 0:00:18]} g5 {[%emt 0:01:40]} 46. Nc2 {[%emt 0:00:46]} Rc5 {[%emt 0:05:27]} 47. Nd4 {[%emt 0:01:32]} Rdc7 {[%emt 0:01:47]} 48. f4 {[%emt 0:02:01]} gxf4+ {[%emt 0:00:55]} 49. Kxf4 {[%emt 0:00:25]} Bg6 {[%emt 0:01:12]} (49... h5 $16 {might work better.} 50. g4 Kh7) 50. g4 $18 {[%emt 0:03:22]} Rf7+ {[%emt 0:01:58]} 51. Kg3 {[%emt 0:00:08] White has a decisive advantage.} Rc8 {[%emt 0:03:14]} 52. Kh4 {[%emt 0:04:14]} Kh7 {[%emt 0:02:18]} 53. Ra6 {[%emt 0:01:06] Weighted Error Value: White=0.07 (flawless) /Black=0.14 (very precise)} 1-0

[Event "Croatian 1B League 2022"]
[Site "Porec"]
[Date "2022.09.26"]
[Round "3.6"]
[White "Cubric, Andrija"]
[Black "Pecnik, Leo"]
[Result "0-1"]
[ECO "C41"]
[WhiteElo "1830"]
[BlackElo "2317"]
[Annotator "ChessBase"]
[PlyCount "68"]
[EventDate "2022.09.24"]
[EventType "team-tourn"]
[EventCountry "CRO"]
[SourceTitle "playchess.com"]
[Source "ChessBase"]
[SourceQuality "1"]
[TimeControl "40/5400+30:1800+30"]

1. d4 {[%emt 0:00:01]} d6 {[%emt 0:00:09]} 2. e4 {[%emt 0:01:06]} Nf6 {[%emt 0:00:12]} 3. Nc3 {[%emt 0:01:04]} e5 {[%emt 0:00:21]} 4. Nf3 {[%emt 0:02:13]} Nbd7 {[%emt 0:00:26]} 5. Bc4 {[%emt 0:03:21]} Be7 {[%emt 0:00:32]} 6. O-O {[%emt 0:01:47]} O-O {[%emt 0:00:06]} 7. Re1 {[%emt 0:01:04]} c6 {[%emt 0:01:36]} 8. a4 {[%emt 0:01:55]} h6 {[%emt 0:07:42]} 9. h3 {[%emt 0:05:35]} Nh7 {[%emt 0:04:14]} 10. Qe2 {[%emt 0:10:45]} Ng5 {[%emt 0:02:49]} 11. Nxg5 {[%emt 0:08:10]} Bxg5 {[%emt 0:00:03]} 12. dxe5 {[%emt 0:03:58]} dxe5 {[%emt 0:00:10]} 13. Be3 {[%emt 0:00:53]} a5 {[%emt 0:10:45]} 14. Rad1 {[%emt 0:02:48]} Qe7 {[%emt 0:00:39]} 15. Qd2 {[%emt 0:12:05]} Nc5 {[%emt 0:22:40]} 16. Bxg5 {[%emt 0:05:08]} Qxg5 {[%emt 0:00:21]} 17. Qxg5 {[%emt 0:01:35]} hxg5 {[%emt 0:00:03]} 18. f3 {[%emt 0:03:31]} Be6 {[%emt 0:04:44]} 19. Bxe6 {[%emt 0:04:52]} Nxe6 {[%emt 0:01:36]} 20. Ne2 {[%emt 0:02:57]} Rfd8 {[%emt 0:00:27]} 21. Kf2 {[%emt 0:02:19]} Kf8 {[%emt 0:00:23]} 22. Ke3 {[%emt 0:02:15]} Ke7 {[%emt 0:00:22]} 23. b3 {[%emt 0:02:26]} f6 {[%emt 0:03:23]} 24. Rxd8 {[%emt 0:09:40]} Rxd8 {[%emt 0:00:02]} 25. Rb1 {[%emt 0:00:50]} Rd7 {[%emt 0:08:32]} 26. Rf1 {[%emt 0:02:23]} Nf4 {[%emt 0:10:24]} 27. Nxf4 {[%emt 0:02:41]} gxf4+ {[%emt 0:00:03]} 28. Ke2 {[%emt 0:00:12]} Kf7 {[%emt 0:00:07]} 29. Rc1 {[%emt 0:02:23]} Kg6 {[%emt 0:03:19]} 30. Rh1 {[%emt 0:01:40]} Kh5 {[%emt 0:05:43]} 31. h4 {[%emt 0:00:12]} b5 {[%emt 0:01:04]} 32. axb5 {[%emt 0:03:03]} cxb5 {[%emt 0:00:03]} 33. Rd1 {[%emt 0:01:03]} Rc7 {[%emt 0:03:51]} 34. Rc1 {[%emt 0:00:26]} b4 {[%emt 0:02:38]} 0-1